Cogmind - Beta 14 @@@ ROGUE MODE // 2025.04.30 @ 18:49:07 Player: driana Result: Destroyed by Y-45 Defender with Beam Rifle Performance ------------- Evolutions (1) 500 Regions Visited (2) 400 Robots Destroyed (17) 85 Value Destroyed (545) 545 Prototype IDs (0) 0 Alien Tech Used (0) 0 Bonus (0) 0 TOTAL SCORE: 1530 Bonus ------- None Cogmind --------- Core Integrity 0/400 Matter 268/300 Energy 79/100 System Corruption 0% Temperature Cool (15) Movement Core (50) Location -9/Materials Parts ------- > --- POWER (2) -------- (None) > --- PROPULSION (2) --- (None) > --- UTILITY (3) ------ Disposable Heat Sink Signal Interpreter > --- WEAPON (2) ------- (None) > --- INVENTORY (5) ---- Small Matter Pod (50) Improved Light Cannon Peak State ------------ > --- POWER ------------ Backup Power I Backup Power I > --- PROPULSION ------- Backup Propulsion I Backup Propulsion I > --- UTILITY ---------- Heat Sink Disposable Heat Sink Signal Interpreter > --- WEAPON ----------- Particle Cannon Maul > --- INVENTORY -------- Small Matter Pod Improved Light Cannon Rocket Launcher [Rating: 12] Favorites ----------- Power Light Ion Engine Engine Light Ion Engine Propulsion Aluminum Leg Leg Aluminum Leg Hover Unit Backup Propulsion I Flight Unit Flight Unit Utility Heat Sink Device Heat Sink Storage Small Matter Pod Processor Signal Interpreter Weapon Medium Laser Energy Gun Medium Laser Energy Cannon Particle Cannon Ballistic Gun Light Assault Rifle Ballistic Cannon Light Cannon Launcher Grenade Launcher Impact Weapon Maul Build | -11 -10 -9 ------- Run | Yrd Mat Mat Slots Evolved 2 | . . 2 Power 1 | . . 1 Propulsion . | . . . Utility 1 | . . 1 Weapon . | . . . Parts Attached 25 | 6 8 11 Power 3 | 1 1 1 Engine 3 | 1 1 1 Core . | . . . Reactor . | . . . Propulsion 4 | 2 2 . Treads . | . . . Leg 3 | 2 1 . Wheel . | . . . Hover . | . . . Flight 1 | . 1 . Utility 6 | 1 1 4 Device 3 | 1 . 2 Storage 1 | . 1 . Processor 2 | . . 2 Hackware . | . . . Protection . | . . . Artifact . | . . . Weapon 12 | 2 4 6 Energy Gun 4 | 1 2 1 Energy Cannon 2 | . . 2 Ballistic Gun 1 | 1 . . Ballistic Cannon 1 | . 1 . Launcher 3 | . 1 2 Special Weapon . | . . . Impact Weapon 1 | . . 1 Slashing Weapon . | . . . Piercing Weapon . | . . . Special Melee Weapon . | . . . Unidentified Prototypes . | . . . Parts Lost 15 | . 3 12 Power 5 | . 1 4 Propulsion 5 | . 2 3 Utility 2 | . . 2 Weapon 3 | . . 3 Highest Loss Streak 10 | . 2 10 To Critical Strikes . | . . . Average Slot Usage (%) 75 | . 86 57 Engine 9 | . 8 11 Leg 14 | . 23 . Hover 2 | . . 7 Flight 2 | . 1 2 Device 13 | . 14 12 Storage 7 | . 12 . Processor 2 | . . 7 Energy Gun 9 | . 15 . Energy Cannon 2 | . . 6 Ballistic Gun 1 | . 2 . Ballistic Cannon 4 | . 7 . Impact Weapon 3 | . . 10 Peak Build Rating 12 | 6 7 12 Average Rating 6 | 3 6 7 On Entrance 3 | . 6 5 Naked Turns . | . . . Heaviest Build 14 | 7 10 14 Greatest Support 20 | 20 20 12 Greatest Overweight (x) 2 | . 2 2 Average Overweight (x) . | . . . Largest Inventory Capacity 5 | 5 5 5 Average Capacity 5 | 5 5 5 Most Carried 4 | 1 3 4 Average Carried 1 | . 1 2 Final Capacity 5 | 5 5 5 Final Carried 2 | 1 2 2 Class Distribution -------------------- 100% | Mutant Dominant Class ---------------- Mutant | -10/Materials Mutant | -9/Materials Resources | -11 -10 -9 ----------- Run | Yrd Mat Mat Matter Collected 515 | 264 133 118 Remotely . | . . . Salvage Created 512 | 39 177 296 Parts 26 | 3 12 11 Haulers Intercepted . | . . . Recyclers Shooed 2 | . 1 1 Parts Field Recycled . | . . . Retrieved Matter . | . . . Parts Self-Destructed . | . . . Prevented . | . . . Kills | -11 -10 -9 ------- Run | Yrd Mat Mat Combat Hostiles Destroyed 16 | 1 7 8 Guns 4 | 1 3 . Cannons 10 | . 4 6 AOE 1 | . . 1 Classes Destroyed 4 | 1 2 1 Builder 1 | . 1 . Swarmer 2 | . 2 . Grunt 13 | 1 5 7 Sentry 1 | . . 1 Best Kill Streak 3 | 1 3 2 Combat Bots Only 3 | 1 3 2 Max Kills in Single Turn 1 | 1 1 1 Gunslinging . | . . . Exploded 1 | . . 1 Melee . | . . . Uniques/NPCs Destroyed . | . . . Combat | -11 -10 -9 -------- Run | Yrd Mat Mat Hostile Shots Fired 195 | 5 94 96 Missed 56 | 2 28 26 Damage Taken 1712 | 35 639 1038 Core 580 | . 171 409 Absorbed by Shields . | . . . Core Remaining (%) 65 | 100 31 . Volleys Fired 58 | 4 33 21 Largest 2 | 2 2 1 Hottest 90 | 70 90 68 Shots Fired 91 | 8 62 21 Gun 47 | 8 39 . Cannon 41 | . 22 19 Launcher 3 | . 1 2 Special . | . . . Kinetic 26 | 4 22 . Thermal 62 | 4 39 19 Explosive 3 | . 1 2 Electromagnetic . | . . . Robot Hit Streak 12 | 3 12 6 Robot Miss Streak 5 | 2 5 1 Penetration Max . | . . . Secondary Targets 1 | . 1 . Max Gunslinging Chain 1 | . 1 . Shots Hit Robots 67 | 4 37 26 Core Hits 25 | 2 11 12 Critical Kills . | . . . Critical Parts Destroyed 1 | . . 1 Critical Strikes 3 | . 1 2 Blast 1 | . 1 . Smash 2 | . . 2 Melee Attacks 16 | . . 16 Impact 16 | . . 16 Slashing . | . . . Piercing . | . . . Sneak Attacks . | . . . Combat Hostiles . | . . . Follow-up Attacks . | . . . Damage Inflicted 1371 | 39 519 813 Guns 325 | 39 286 . Cannons 518 | . 229 289 Explosions 211 | . . 211 Melee 310 | . . 310 Ramming 7 | . 4 3 Kinetic 243 | 14 229 . Thermal 600 | 25 286 289 Explosive 211 | . . 211 Electromagnetic . | . . . Impact 310 | . . 310 Slashing . | . . . Piercing . | . . . Highest Corruption 1 | . 1 . Average Corruption 1 | . 1 . Corruption Purged . | . . . Corruption Blocked . | . . . Effects 3 | . 3 . Message Errors 1 | . 1 . Energy Discharges 1 | . 1 . Weapon Failures 1 | . 1 . Overload Shots . | . . . Overflow Damage 73 | . . 73 Projectiles 3 | . . 3 Explosions 45 | . . 45 Melee 25 | . . 25 Knockbacks 3 | . 3 . Impact . | . . . Kinetic 3 | . 3 . Secondary . | . . . Self-Inflicted Damage 114 | . 24 90 Shots 3 | . 1 2 Rammed 1 | . . 1 Targets Rammed 1 | . . 1 Kicked . | . . . Crushed . | . . . Highest Temperature 197 | 78 22 197 Average Temperature 67 | 40 6 93 Received Heat Transfer 687 | 18 180 489 Siege Activations . | . . . Robots Corrupted 1 | . . 1 Combat Hostiles 1 | . . 1 Parts Fried . | . . . Impact Corruptions 2 | . . 2 Robots Melted . | . . . Combat Hostiles . | . . . Parts Melted 1 | . 1 . Heat Transferred 1422 | 74 830 518 Parts Sabotaged . | . . . Parts Stolen . | . . . Parts Stripped . | . . . Power Chain Reactions . | . . . Alert | -11 -10 -9 ------- Run | Yrd Mat Mat Peak Influence 309 | 20 309 276 Initial 130 | . 13 130 Average 135 | 4 147 182 Maximum Alert Level 1 | . 1 1 Low Security (%) 73 | 100 70 64 Level 1 26 | . 29 35 Level 2 . | . . . Level 3 . | . . . Level 4 . | . . . Level 5 . | . . . High Security . | . . . Max Security . | . . . Squads Dispatched 5 | . 4 1 Investigation 3 | . 3 . Extermination . | . . . Reinforcement 2 | . 1 1 Assault . | . . . Garrison . | . . . Intercept . | . . . Searches Triggered . | . . . Construction Impeded . | . . . Haulers Reinforced . | . . . Active Scanning Responses . | . . . Cargo Convoy Interrupts . | . . . Stealth | -11 -10 -9 --------- Run | Yrd Mat Mat Distress Signals . | . . . Communications Jammed . | . . . Distress Signals . | . . . Times Spotted 25 | 1 14 10 Peak Tracking Total 6 | 1 4 6 Tactical Retreats 3 | . 2 1 Traps | -11 -10 -9 ------- Run | Yrd Mat Mat Traps Triggered . | . . . Indirectly . | . . . Trap Hack Attempts . | . . . Triggered . | . . . Disarmed . | . . . Reprogrammed . | . . . Reused . | . . . Traps Extracted . | . . . Installed . | . . . Triggered . | . . . Machines | -11 -10 -9 ---------- Run | Yrd Mat Mat Machines Disabled 2 | . 1 1 Max in Single Turn 1 | . 1 1 Machines Repaired . | . . . Machines Dismantled . | . . . Machines Sabotaged . | . . . Overloaded Fab Kills . | . . . Hacking | -11 -10 -9 --------- Run | Yrd Mat Mat Machines Accessed 6 | . 5 1 Terminals 2 | . 2 . Fabricators . | . . . Repair Stations 2 | . 1 1 Recycling Units 2 | . 2 . Scanalyzers . | . . . Garrison Access . | . . . Total Hacks 22 | . 20 2 Successful 15 | . 14 1 Failed 7 | . 6 1 Catastrophic . | . . . Database Lockouts . | . . . Manual . | . . . Terminals 10 | . 10 . Fabricators . | . . . Repair Stations 6 | . 4 2 Recycling Units 6 | . 6 . Scanalyzers . | . . . Garrison Access . | . . . Terminal Hacks 7 | . 7 . Record 4 | . 4 . Locate Traps 1 | . 1 . Recall Reinforcements 1 | . 1 . Zone Layout 1 | . 1 . Fabricator Hacks . | . . . Repair Station Hacks 3 | . 2 1 Scan Component 1 | . 1 . Repair 1 | . 1 . Refit 1 | . . 1 Recycling Unit Hacks 5 | . 5 . Process 1 | . 1 . Report Inventory 2 | . 2 . Retrieve Matter 2 | . 2 . Scanalyzer . | . . . Garrison Access Hacks . | . . . Unauthorized Hacks . | . . . Terminals . | . . . Fabricators . | . . . Repair Stations . | . . . Recycling Units . | . . . Scanalyzers . | . . . Garrison Access . | . . . Data Cores Recovered . | . . . Used . | . . . Hacking Detections 3 | . 3 . Full Trace Events 3 | . 3 . Feedback Events . | . . . Feedback Blocked . | . . . Robot Schematics Acquired . | . . . Robots Built . | . . . Authchips . | . . . Time . | . . . Total Robot Build Rating . | . . . Part Schematics Acquired . | . . . Parts Built . | . . . Authchips . | . . . Time . | . . . Total Part Build Rating . | . . . Parts Repaired . | . . . Time 26 | . 26 . Parts Recycled . | . . . Recycled Matter 19 | . 19 . Retrieved Matter 19 | . 19 . Retrieved Components . | . . . Parts Scanalyzed . | . . . Part Schematics Acquired . | . . . Parts Damaged . | . . . Bothacking | -11 -10 -9 ------------ Run | Yrd Mat Mat Used RIF Installer . | . . . Robots Hacked . | . . . Non-combat . | . . . Combat . | . . . Robot Hacks Applied . | . . . Relay Couplers Released . | . . . Fabnet Peak Effective % . | . . . Robots Rewired . | . . . Allies Hacked . | . . . Hacks Repelled . | . . . Allies | -11 -10 -9 -------- Run | Yrd Mat Mat Total Allies . | . . . Largest Group . | . . . Highest-Rated Group . | . . . Highest-Rated Ally . | . . . Total Orders . | . . . Ally Attacks . | . . . Total Damage . | . . . Kills . | . . . Allies Corrupted . | . . . Allies Melted . | . . . Intel | -11 -10 -9 ------- Run | Yrd Mat Mat Robot Analysis Total . | . . . Derelict Logs Recovered . | . . . Drone Launches . | . . . Drone Recoveries . | . . . Exploration | -11 -10 -9 ------------- Run | Yrd Mat Mat Turns Passed 647 | 105 337 205 Spaces Moved 329 | 78 169 82 Core 38 | 17 3 18 Treads . | . . . Legs 198 | 61 137 . Wheels . | . . . Hover 29 | . . 29 Flight 64 | . 29 35 Fastest Speed 40 | 50 100 40 Average Speed 113 | 104 119 110 Slowest Speed 240 | 120 150 240 Overloaded Moves . | . . . Propulsion Burnouts . | . . . Robots Hopped . | . . . Cave-ins Triggered . | . . . Exploration Rate (%) 13 | 9 22 9 Regions Visited 2 Branch Regions . Pre-discovered Areas . | . . . Known Exits Taken . | . . . Unknown Exits Taken 2 | 1 1 . Scrap Searched . | . . . Spaces Dug 1 | . . 1 Terrain Destroyed 24 | . 9 15 Melee 1 | . . 1 Projectile . | . . . AOE 23 | . 9 14 Terrain Rammed 1 | . 1 . Walls Destroyed . | . . . Machines Disabled . | . . . Actions | -11 -10 -9 --------- Run | Yrd Mat Mat Total 487 | 94 244 149 Wait 19 | . 17 2 Move 327 | 77 168 82 Hop . | . . . Pick Up 23 | 7 8 8 Fast Attach . | . . . Attach 25 | 6 8 11 Detach 11 | . 5 6 Swap . | . . . Drop 6 | . 4 2 Fire 58 | 4 33 21 Melee 16 | . . 16 Ram 2 | . 1 1 Kick . | . . . Crush . | . . . Escape Stasis . | . . . Rewire . | . . . Trap . | . . . Miscellaneous . | . . . Route ------- -11/Scrapyard -10/Materials -9/Materials History --------- Turn | Location | Event 2 | -11/Scrapyard | Met Revision 17 70 | -11/Scrapyard | Discovered new exit (range 8) 106 | -11/Scrapyard | Entered Materials 313 | -10/Materials | Build established: Mutant 343 | -10/Materials | Discovered new exit (range 14) 370 | -10/Materials | Core integrity fell below 50% 443 | -10/Materials | Entered another Materials area 443 | -9/Materials | Evolved 2 slots: Power x1, Utility x1 611 | -9/Materials | Core integrity fell below 50% 643 | -9/Materials | Core integrity fell below 20% 648 | -9/Materials | Destroyed by Y-45 Defender with Beam Rifle Last Messages --------------- 00625_ R-06 Scavenger collects Aluminum Leg. 00632_ Y-45 Defender suffers critical hit (Smash). 00633_ Critical hit (Burn: +37). 00636_ Backup Power I destroyed. 00636_ Backup Propulsion I destroyed. 00640_ Maul destroyed. 00641_ Slammed into Y-45 Defender. Ramming works as a last resort when unarmed or blocked, but can have serious negative consequences. 00642_ Acquired 27 matter. 00642_ R-06 Scavenger collects Heat Sink. 00643_ Acquired Heat Sink. [Achievement: Let's See Who's Tougher] 00646_ Destroyed Lgt. Ion Engine. 00646_ Heat Sink destroyed. 00646_ Destroyed Heat Sink. 00648_ Rocket Launcher destroyed. 00648_ Destroyed Rocket Launcher. 00648_ G-34 Mercenary destroyed. [Achievement: First Step to Greatness] Map ----- +----------------------------------------------------+ | | | | | | | | | | | | | | | | | | | | | | | | | | | | | | | | | | | ?????????????????????????????????????????????????? | | ?????????????????????????????????????????????????? | | ???????##????????????########????????????????????? | | ??????## ############# #????????????????????? | | ??????# !!# ##???????????????????? | | ??????# """ # #???????????????????? | | ####### """ # *% #????????????????????? | | ] # """ # %Y= ##???????????????????? | | ]] # # @ #???????????????????? | | ] # " " # #####???????????????? | | [] # "R" # r u ???????????? | | # """ # a a ##????????????????? | | # # #?????????????????? | | ##+########+#### """ #?????????????????? | | """ #?????????????????? | | "" #?????????????????? | | #### """ #?????????????????? | | ##############??#"" %k #?????????????????? | | ????????????????#"T +?????????????????? | | ????????????????#"" t % #?????????????????? | | ????????????????# ??????????????????? | | ????????????????? % #?????????????????? | | ????????????????? ######### ??????????????????? | | ????????????????? ????????? ??????????????????? | | ???????????????????????????? ????????????????????? | | ?????????????????????????????????????????????????? | | ?????????????????????????????????????????????????? | | ?????????????????????????????????????????????????? | | ?????????????????????????????????????????????????? | | ?????????????????????????????????????????????????? | | ?????????????????????????????????????????????????? | | ?????????????????????????????????????????????????? | | ?????????????????????????????????????????????????? | +----------------------------------------------------+ Best States ------------- Heat Dissipation 38 Coolant Potential 50 Energy Generation 14 Energy Capacity 250 Matter Stores 300 Matter Capacity 350 Sight Range 16 Terrain Scan Density 85 Evasion (%) 62 Item Schematics ----------------- None Robot Schematics ------------------ None Fabricated ------------ Nothing Alien Tech Used ----------------- None Achievements -------------- Crack Shot First Step to Greatness Let's See Who's Tougher One Hack Too Far Power Corrupts Storm Trooper Uninvited Guest Challenges ------------ None Game ------ Seed InsulatedConstructTube Manual? 0 Play Time 00:26:54 Cumulative 0.4 hours Start 2025.04.29 @ 01:29:49 End 2025.04.30 @ 18:49:07 Sessions 4 Manual Loads 0 Difficulty Rogue Special Mode None Game No. 1 Rogue 1 Adventurer 0 Explorer 0 Win Type - Total 0 Types 0/0/0/0/0/0/0/0/0 Lore% 0 Gallery% 1 Achievement% 2 Wizard Run 0 Options --------- Layout 1 ASCII 0 Keyboard 0 Movement Mouse Keybinds 0 Fullscreen 2 Font 20/SmallcapsGlow Map View 56x45 Zoom Use 0% Tactical HUD 1 Map Filters NONE Filters NONE Steam X RUN: ba378c1b-d8e5-4d6f-aaaf-bc7620773cbb